[Event "GER-ch Youth-U18 2022"]
[Site "Willingen"]
[Date "2022.06.11"]
[Round "9.7"]
[White "Weihrauch, Jakob"]
[Black "Hinrichs, Paul"]
[Result "1/2-1/2"]
[ECO "C92"]
[WhiteElo "2139"]
[BlackElo "2244"]
[Annotator "TA"]
[PlyCount "155"]
[EventDate "2022.06.05"]
[EventType "swiss"]
[EventRounds "9"]
[EventCountry "GER"]
[SourceTitle "playchess.com"]
[Source "ChessBase"]
[SourceQuality "1"]
[TimeControl "40/4500+30:900+30"]

{[%evp 35,155,4,10,2,5,5,3,9,22,6,29,33,52,52,50,28,16,0,0,0,0,0,4,0,16,12,99,98,94,47,101,78,112,83,151,128,172,165,169,118,168,78,82,0,148,0,0,0,0,0,0,0,0,0,0,0,0,-22,-43,-6,-8,-5,-8,-94,-8,-8,-8,-87,-88,-80,-83,-88,-70,-145,-145,-145,-145,-137,-137,-137,-137,-163,-163,-164,-164,-164,-163,-163,-163,-163,-163,-163,-163,-163,-163,-164,-164,-164,-164,-164,-164,-164,-164,-172,-172,-172,-172,-172,-137,-137,-137,-137,-137,-137,-137,-137,0,-137,0,0,0,-29990]} 1. e4 {[%emt 0:00:00]} e5 {[%emt 0:00:00]} 2. Nf3 {[%emt 0:00:00]} Nc6 {[%emt 0:00:00]} 3. Bb5 {[%emt 0:00:00]} a6 {[%emt 0:00:00]} 4. Ba4 {[%emt 0:00:00]} Nf6 {[%emt 0:00:00]} 5. O-O {[%emt 0:00:00]} Be7 {[%emt 0:00:00]} 6. Re1 {[%emt 0:00:00]} b5 {[%emt 0:00:00]} 7. Bb3 {[%emt 0:00:00]} d6 {[%emt 0:00:00]} 8. c3 {[%emt 0:00:00]} O-O {[%emt 0:00:00]} 9. h3 {[%emt 0:00:00]} Bb7 {[%emt 0:00:00]} 10. d4 {[%emt 0:00:00]} Re8 {[%emt 0:00:00]} 11. Nbd2 {[%emt 0:00:00]} Bf8 {[%emt 0:00:00]} 12. a4 {[%emt 0:00:00]} h6 {[%emt 0:00:00]} 13. Bc2 {[%emt 0:00:09]} exd4 {[%emt 0:00:00]} 14. cxd4 {[%emt 0:00:05]} Nb4 {[%emt 0:00:00]} 15. Bb1 {[%emt 0:00:05]} c5 {[%emt 0:00:00]} 16. d5 {[%emt 0:00:04]} Nd7 {[%emt 0:00:00][%cal Bf6d7,Bd7c5,Bc5d3][%mdl 32]} 17. Ra3 {[%emt 0:00:12]} c4 {[%emt 0:00:00]} 18. Nd4 {[%emt 0:10:53]} Qf6 {[%emt 0:00:00]} 19. N2f3 {[%emt 0:03:45] C92: Closed Ruy Lopez: 9...Be6, Karpov and Flohr-Zaitsev Variations.} Nc5 {[%emt 0:00:00]} 20. b3 {[%emt 0:07:50]} Nbd3 {[%emt 0:00:00]} 21. Bxd3 {[%emt 0:04:07]} Nxd3 {[%emt 0:15:25]} 22. Re3 {[%emt 0:09:49]} b4 {[%emt 0:00:33]} 23. Ra1 {[%emt 0:09:06] [#]} Nc5 $146 ({Predecessor:} 23... Ne5 24. Nxe5 dxe5 25. Nf5 c3 26. Rf3 Qd8 27. Nxh6+ gxh6 28. Rg3+ Kh7 29. Qg4 {1-0 (31) So,W (2772)-Le,Q (2709) chess24.com INT 2021}) 24. bxc4 {[%emt 0:06:22]} Rxe4 {[%emt 0:01:47]} 25. Rxe4 {[%emt 0:04:25]} Nxe4 {[%emt 0:00:05]} 26. Qe1 {[%emt 0:00:50]} Nc3 {[%emt 0:00:08]} 27. Bb2 {[%emt 0:05:12]} Rc8 $1 {[%emt 0:00:20]} 28. Bxc3 {[%emt 0:02:55]} bxc3 {[%emt 0:00:45]} 29. Qb1 $36 {[%emt 0:05:51][%mdl 2048] White fights for an advantage.} (29. Qxc3 Bxd5 30. Nd2 Bxc4 $1 $17) 29... Ba8 {[%emt 0:09:17]} 30. Qd3 {[%emt 0:03:20]} g6 {[%emt 0:09:04]} (30... Qd8 $11) 31. Rc1 {[%emt 0:01:57]} (31. Qxc3 Bxd5 32. Nd2 Bg7 $17) 31... Qd8 {[%emt 0:00:34]} 32. Ne2 {[%emt 0:06:36] White is more active.} ({Weaker is} 32. Qxc3 Bxd5 33. Qd3 Bg7 $17) (32. Rxc3 $16 Qd7 33. Ra3) 32... Qc7 {[%emt 0:03:36]} (32... Qa5 $14) 33. Rxc3 $16 {[%emt 0:00:19]} Bg7 {[%emt 0:01:00]} 34. Rc1 {[%emt 0:01:02]} Qa5 {[%emt 0:02:12]} (34... Bb7 $142) 35. Qb3 {[%emt 0:00:28]} Bf6 {[%emt 0:03:02]} 36. Rb1 {[%emt 0:00:26]} Kg7 {[%emt 0:01:17]} 37. Kf1 {[%emt 0:04:21]} (37. g4 $18) 37... Re8 {[%emt 0:11:01]} (37... h5 $16) 38. Qc2 {[%emt 0:02:12]} (38. Ng3 $18 {has better winning chances.}) 38... Qc7 {[%emt 0:01:55]} 39. Qb3 {[%emt 0:00:48]} (39. Qa2 $16) 39... Re7 {[%emt 0:08:44]} (39... Qa5 $1 $11) 40. Qb4 {[%emt 0:00:59]} ({Better is} 40. Qd3 $16) 40... Qc8 $1 $11 {[%emt 0:06:29] And now ...Rb7 would win.} 41. Rc1 {[%emt 0:00:00]} Rc7 $1 {[%emt 0:00:00][%cal Oa8d5]} 42. Nf4 {[%emt 0:00:00]} Rc5 {[%emt 0:00:00][%cal Oa8d5]} 43. Nd3 {[%emt 0:00:00]} a5 {[%emt 0:00:00]} 44. Qb3 {[%emt 0:01:34]} Rc7 {[%emt 0:00:00][%cal Oa8d5]} 45. Qb5 {[%emt 0:03:51]} Bb7 {[%emt 0:00:00] White must now prevent ...Ba6.} 46. Kg1 {[%emt 0:05:03]} ({But not} 46. Qxa5 Rxc4 47. Rxc4 Qxc4 $17) 46... Ba6 {[%emt 0:00:00]} 47. Qxa5 {[%emt 0:00:04] Threatens to win with Nd2.} Rxc4 {[%emt 0:00:00]} 48. Rxc4 {[%emt 0:02:27]} Qxc4 {[%emt 0:00:00]} 49. Nfe1 {[%emt 0:02:18]} (49. Nde1 $1 $11) 49... Bb7 {[%emt 0:00:53]} ({Black should play} 49... Bc3 $17 50. Qb6 Qxa4) 50. Qb5 {[%emt 0:01:39]} Bxd5 {[%emt 0:00:13] Black wants to play ...Qxb5. This bishop pair is nice.} 51. Qxc4 {[%emt 0:01:12]} (51. Nb4 $1 $11 {keeps the balance.} Qxb5 52. axb5) 51... Bxc4 {[%emt 0:00:05][%mdl 4096] Endgame KBB-KNN} 52. Nb4 {[%emt 0:00:53]} Bc3 {[%emt 0:08:37][%csl LRb4,LRe1]} 53. Ned3 {[%emt 0:00:06]} Kf8 {[%emt 0:00:41]} 54. a5 {[%emt 0:01:33]} (54. g4 $15) 54... Bxd3 $17 {[%emt 0:00:15]} 55. Nxd3 {[%emt 0:00:04] Strongly threatening a6.} Bxa5 {[%emt 0:00:03] KB-KN} 56. Kf1 {[%emt 0:00:04]} Ke7 {[%emt 0:00:20]} 57. Ke2 {[%emt 0:00:01]} Ke6 {[%emt 0:00:28]} 58. Nf4+ {[%emt 0:00:05]} Ke5 {[%emt 0:00:16]} 59. Nd3+ {[%emt 0:00:01]} Kd4 {[%emt 0:00:22]} 60. Nf4 {[%emt 0:00:47]} Bb4 {[%emt 0:03:00]} 61. Nd3 {[%emt 0:00:07]} Bc5 {[%emt 0:00:08]} 62. Nf4 {[%emt 0:00:46]} d5 {[%emt 0:00:08]} 63. Nd3 {[%emt 0:00:22]} Bd6 {[%emt 0:00:05]} 64. Kd2 {[%emt 0:00:09]} h5 {[%emt 0:00:31][%cal Bh6h5,Bh5h4][%mdl 32]} 65. Kc2 {[%emt 0:00:58]} g5 {[%emt 0:00:55]} 66. Kd2 {[%emt 0:01:27]} Bc7 {[%emt 0:00:42]} 67. Ke2 {[%emt 0:00:59]} f5 {[%emt 0:00:39]} 68. Kd2 {[%emt 0:02:01]} h4 {[%emt 0:00:59]} 69. f3 {[%emt 0:00:16]} Bd6 {[%emt 0:05:01]} 70. Ke2 {[%emt 0:00:09]} Bf4 {[%emt 0:00:07]} 71. Nf2 {[%emt 0:00:27]} Ke5 {[%emt 0:00:28]} 72. Nd3+ {[%emt 0:00:06]} Kf6 {[%emt 0:00:14]} 73. Nf2 {[%emt 0:00:15]} Bd6 {[%emt 0:00:29]} 74. Nd3 {[%emt 0:00:10]} Kg6 {[%emt 0:01:04]} 75. Kf2 {[%emt 0:00:06]} Kh5 {[%emt 0:00:18]} (75... Kf7 $17 76. Ke3 f4+ 77. Kd4 Ke6) 76. Ke2 {[%emt 0:00:10] [#]} (76. Ke3 $11 {was the only way to keep the balance.}) 76... g4 {[%emt 0:00:12]} (76... f4 $1 $17 77. Kd2 Kg6) 77. Ke3 $11 {[%emt 0:00:29]} gxh3 78. Kd4 $2 {[%mdl 40960] Quite a comeback for Black.  Weighted Error Value: White=0.21 (precise) /Black=0.21 (precise) . An unexpected result.} (78. gxh3 $11 Kg6 79. Kd4) 1/2-1/2

[Event "GER-ch Youth-U18 2022"]
[Site "Willingen"]
[Date "2022.06.11"]
[Round "9.8"]
[White "Geltz, Noah"]
[Black "Bornholdt, Joa Max"]
[Result "1/2-1/2"]
[ECO "B10"]
[WhiteElo "2156"]
[BlackElo "2155"]
[Annotator "TA"]
[PlyCount "49"]
[EventDate "2022.06.05"]
[EventType "swiss"]
[EventRounds "9"]
[EventCountry "GER"]
[SourceTitle "playchess.com"]
[Source "ChessBase"]
[SourceQuality "1"]
[TimeControl "40/4500+30:900+30"]

{[%evp 9,49,27,40,31,30,26,29,-16,-19,-9,0,-20,-29,-25,-8,-2,14,17,18,17,35,14,18,10,16,12,31,20,22,25,39,47,33,11,7,0,0,0,0,0,0,-26]} 1. e4 {[%emt 0:00:00]} c6 {[%emt 0:00:00]} 2. Nf3 {[%emt 0:00:00]} d5 {[%emt 0:00:00]} 3. Nc3 {[%emt 0:00:00]} dxe4 {[%emt 0:00:00]} 4. Nxe4 {[%emt 0:00:00]} Nf6 {[%emt 0:00:00]} 5. Qe2 {[%emt 0:00:00]} Na6 {[%emt 0:00:00]} 6. d3 {[%emt 0:00:45] B11: Caro-Kann: Two Knights Variation.} Nxe4 {[%emt 0:00:00]} 7. dxe4 {[%emt 0:04:10]} e5 {[%emt 0:00:16] Against Bf4} 8. g3 {[%emt 0:01:17] White has an edge.} Be7 {[%emt 0:01:20]} 9. Bg2 {[%emt 0:01:04][%cal Bf1g2,Bg2f3,Bf3e2][%mdl 32]} O-O {[%emt 0:00:40]} 10. O-O {[%emt 0:00:36]} Qc7 {[%emt 0:00:29] [#]} 11. b3 $146 {[%emt 0:04:03]} ({Predecessor:} 11. Bd2 Nc5 12. Bc3 Bg4 13. h3 Bxf3 14. Qxf3 Ne6 15. Qg4 Bc5 16. Kh1 Bd4 17. Bxd4 Nxd4 {0-1 (41) Gajcin,M (2295)-Rapport,J (2282) Belgrade 2018}) 11... Rd8 {[%emt 0:23:21]} 12. Bb2 {[%emt 0:01:34]} Bg4 {[%emt 0:02:02]} 13. h3 {[%emt 0:02:51]} Bxf3 {[%emt 0:00:13]} 14. Bxf3 {[%emt 0:00:15]} Qa5 {[%emt 0:02:33]} 15. Rfd1 {[%emt 0:03:44]} Ba3 {[%emt 0:03:57]} 16. c3 {[%emt 0:11:22]} Bxb2 {[%emt 0:01:12]} 17. Qxb2 {[%emt 0:00:08]} g6 {[%emt 0:06:06]} 18. b4 {[%emt 0:05:41]} Qc7 {[%emt 0:04:15]} 19. Be2 {[%emt 0:00:29]} Rxd1+ {[%emt 0:01:44]} 20. Rxd1 {[%emt 0:00:07]} Rd8 {[%emt 0:00:09] Inhibits Qd2.} 21. Rb1 {[%emt 0:08:11]} Qd7 {[%emt 0:04:28] The position is equal.} 22. Qa3 {[%emt 0:01:28] Hoping for Rd1.} Qxh3 {[%emt 0:07:02]} 23. Bxa6 {[%emt 0:01:15]} bxa6 {[%emt 0:00:06]} 24. Qxa6 {[%emt 0:01:25]} Qd7 {[%emt 0:01:14]} 25. Qc4 {[%emt 0:02:26] Weighted Error Value: White=0.06 (flawless) /Black=0.05 (flawless)} 1/2-1/2

[Event "GER-ch Youth-U18 2022"]
[Site "Willingen"]
[Date "2022.06.11"]
[Round "9.9"]
[White "Hassemeier, Mika"]
[Black "Haack, Kevin"]
[Result "1/2-1/2"]
[ECO "B90"]
[WhiteElo "2127"]
[BlackElo "2176"]
[Annotator "TA"]
[PlyCount "203"]
[EventDate "2022.06.05"]
[EventType "swiss"]
[EventRounds "9"]
[EventCountry "GER"]
[SourceTitle "playchess.com"]
[Source "ChessBase"]
[SourceQuality "1"]
[TimeControl "40/4500+30:900+30"]

{[%evp 20,203,0,0,0,0,0,-12,-8,-8,-13,-16,-20,-28,19,16,18,8,22,0,0,0,62,62,63,63,69,62,63,63,70,71,95,105,100,47,45,48,52,61,69,77,72,82,112,87,91,93,113,93,159,141,181,189,245,201,196,193,181,0,0,0,0,0,139,133,132,137,135,114,261,250,245,176,152,152,205,126,145,120,154,39,47,0,152,152,152,152,152,152,130,36,152,29,46,29,29,30,91,0,227,263,244,225,174,91,91,65,91,0,0,0,0,0,0,0,0,0,0,0,0,0,0,0,0,0,0,0,0,0,0,0,24,0,0,0,0,0,0,0,0,0,0,0,0,0,0,0,0,0,0,0,0,0,0,0,0,0,0,0,0,0,0,0,0,0,0,0,0,0,0,0,0,0,0,0,0,0,0,0,0,0,0,0,0,0]} 1. e4 {[%emt 0:00:00]} c5 {[%emt 0:00:00]} 2. Nf3 {[%emt 0:00:00]} d6 {[%emt 0:00:00]} 3. d4 {[%emt 0:00:00]} cxd4 {[%emt 0:00:00]} 4. Nxd4 {[%emt 0:00:00]} Nf6 {[%emt 0:00:00]} 5. Nc3 {[%emt 0:00:00]} a6 {[%emt 0:00:00]} 6. Bc4 {[%emt 0:00:00]} e6 {[%emt 0:00:00]} 7. a3 {[%emt 0:00:00]} Be7 {[%emt 0:00:00]} 8. Ba2 {[%emt 0:00:00]} O-O {[%emt 0:00:00]} 9. O-O {[%emt 0:00:00]} Qc7 {[%emt 0:06:48]} 10. f4 {[%emt 0:00:00]} Nc6 {[%emt 0:01:31]} 11. Be3 {[%emt 0:00:00]} Nxd4 {[%emt 0:08:13] B88: Sicilian: Sozin Attack.} 12. Bxd4 {[%emt 0:00:00]} e5 {[%emt 0:00:46]} 13. Be3 {[%emt 0:01:24]} Be6 {[%emt 0:04:41]} 14. f5 {[%emt 0:06:50]} Bxa2 {[%emt 0:02:11]} 15. Rxa2 {[%emt 0:00:48] [#]} h6 $146 {[%emt 0:02:33] Against Bg5} ({Predecessor:} 15... Rfd8 16. Bg5 d5 17. Bxf6 dxe4 18. Qg4 Bxf6 19. Nxe4 Kh8 20. c3 Rac8 21. Raa1 Qb6+ {0-1 (45) Jurkovic,A (2319)-Stocek,J (2552) Nova Gorica 2004}) 16. Qf3 {[%emt 0:14:14]} Bd8 {[%emt 0:14:13]} (16... b5 {is superior.}) 17. Raa1 $11 {[%emt 0:13:13]} Qc6 {[%emt 0:03:36]} 18. Rad1 {[%emt 0:04:20]} Bb6 {[%emt 0:02:37]} 19. Nd5 {[%emt 0:03:59]} Nxd5 {[%emt 0:05:32]} 20. Rxd5 {[%emt 0:01:19]} f6 {[%emt 0:01:53]} (20... Bxe3+ $1 $11 21. Qxe3 Qxc2) 21. c3 {[%emt 0:06:25]} Rfd8 {[%emt 0:02:45]} 22. Rfd1 {[%emt 0:02:22]} Rd7 {[%emt 0:02:31]} 23. Kh1 {[%emt 0:08:58]} Bxe3 {[%emt 0:02:23]} 24. Qxe3 {[%emt 0:00:08]} Rad8 {[%emt 0:03:38]} 25. Qd3 {[%emt 0:03:16] White is more active.} Kf8 {[%emt 0:01:45]} 26. c4 {[%emt 0:02:03]} Ke7 {[%emt 0:02:47]} 27. b4 {[%emt 0:02:35]} (27. b3 $16) 27... Rc8 {[%emt 0:03:51]} 28. Rc1 {[%emt 0:00:37][%cal Bd1c1,Bc1c3,Bc3c2,Bc2d2][%mdl 32]} b6 {[%emt 0:03:51]} 29. h3 {[%emt 0:01:53]} Qb7 {[%emt 0:01:21]} 30. Rc3 {[%emt 0:06:53]} Qc6 {[%emt 0:02:27]} 31. Kh2 {[%emt 0:00:39]} Rdc7 {[%emt 0:01:21]} 32. Rc2 {[%emt 0:03:07][%cal Oa3a4]} Rd7 {[%emt 0:01:02]} 33. Qb3 {[%emt 0:01:25][%cal Oc4c5]} Qb7 {[%emt 0:00:57]} 34. a4 {[%emt 0:00:56]} Rb8 {[%emt 0:01:16]} ({Better is} 34... a5) 35. Rcd2 $16 {[%emt 0:01:20]} Rc8 {[%emt 0:00:45] Against c5} 36. Qg3 {[%emt 0:02:13]} Ke8 {[%emt 0:01:34]} (36... Kf8 {is a better defense.}) 37. Qd3 {[%emt 0:00:30]} ({Much less strong is} 37. Rxd6 Rcd8 38. R6d5 Rxd5 39. cxd5 (39. Rxd5 Rxd5 40. cxd5 Qc7 $16) 39... Kf7 $18) 37... Rcd8 {[%emt 0:00:15]} 38. a5 {[%emt 0:01:38]} bxa5 {[%emt 0:01:15]} 39. Rxa5 {[%emt 0:00:27]} (39. bxa5 $18 {Qe2 is the strong threat.} Qc8 40. Rb2) 39... Qxb4 $11 {[%emt 0:01:17]} 40. Qd5 {[%emt 0:00:41] Strongly threatening Qg8+.} Kf8 {[%emt 0:02:13] Against Qg8+} 41. Rxa6 {[%emt 0:00:00]} Qc5 {[%emt 0:00:00]} (41... Rc7 $11) 42. Qxc5 $1 $16 {[%emt 0:00:00]} dxc5 {[%emt 0:00:00]} 43. Rd5 {[%emt 0:00:00]} Rxd5 {[%emt 0:02:08]} 44. exd5 {[%emt 0:00:00][%mdl 4096] Endgame KR-KR} Re8 {[%emt 0:01:53]} (44... Rb8 $16) 45. Rc6 {[%emt 0:00:00]} e4 {[%emt 0:00:07]} 46. Re6 {[%emt 0:04:44]} Rb8 {[%emt 0:05:13]} 47. Rxe4 {[%emt 0:00:15]} Rb3 {[%emt 0:01:20]} (47... Rb2 $16 {was called for.} 48. Re6 Rc2) 48. Kg1 {[%emt 0:01:27]} Rb2 {[%emt 0:00:29]} 49. Kf1 {[%emt 0:02:54]} Kf7 {[%emt 0:01:04]} 50. Re2 {[%emt 0:04:33]} (50. g4 $16) 50... Rb4 $1 $14 {[%emt 0:01:56]} 51. Re4 {[%emt 0:01:02]} (51. Rc2 $1 $14) 51... Rb2 $16 {[%emt 0:00:02]} 52. d6 {[%emt 0:03:33]} Rd2 {[%emt 0:01:55]} 53. Re7+ {[%emt 0:00:05]} Kf8 {[%emt 0:00:00]} 54. Rc7 $1 {[%emt 0:00:24]} Rxd6 {[%emt 0:00:07] [#]} 55. Rxc5 {[%emt 0:00:03]} (55. Ke2 $1 $16) 55... Ra6 {[%emt 0:00:47]} ({Black should play} 55... Rd2 $1 $14) 56. Rc7 {[%emt 0:00:22]} (56. Rc8+ $16 Ke7 57. Rc7+ Kd6 58. Rxg7) 56... Ra2 $11 {[%emt 0:00:23]} 57. c5 {[%emt 0:02:05][%cal Bc4c5,Bc5c6][%mdl 32] aiming for g4.} h5 {[%emt 0:00:54]} 58. c6 {[%emt 0:00:49] Hoping for Rd7.} Rc2 {[%emt 0:00:03] [#]} 59. Ke1 {[%emt 0:00:55]} (59. Kg1 $1 $16) 59... h4 $2 {[%emt 0:02:36]} (59... Rxg2 $11 {and Black stays safe.} 60. Rd7 Ke8) 60. Kd1 $18 {[%emt 0:00:53]} Rc5 {[%emt 0:00:05]} 61. Ke2 {[%emt 0:00:31]} Ke8 {[%emt 0:01:17]} 62. Rxg7 {[%emt 0:01:01]} (62. Kd3 $18) 62... Rxc6 $16 {[%emt 0:00:12]} 63. Kf3 {[%emt 0:01:14]} Kf8 {[%emt 0:01:33]} 64. Ra7 {[%emt 0:00:15]} (64. Rg4 $16) 64... Rc3+ $11 {[%emt 0:00:34]} 65. Kf4 {[%emt 0:00:38]} Rc4+ {[%emt 0:00:04]} 66. Kf3 {[%emt 0:00:03]} Rc3+ {[%emt 0:00:02]} 67. Ke4 {[%emt 0:00:59]} Rc2 {[%emt 0:00:35]} 68. Rh7 {[%emt 0:00:28]} Rxg2 {[%emt 0:01:57]} 69. Rxh4 {[%emt 0:00:03]} Rd2 {[%emt 0:00:04]} 70. Rh7 {[%emt 0:00:17]} Kg8 {[%emt 0:00:52]} 71. Ra7 {[%emt 0:00:08]} Rh2 {[%emt 0:00:42]} 72. Ra3 {[%emt 0:00:55]} Re2+ {[%emt 0:00:02]} 73. Kf4 {[%emt 0:00:08]} Rb2 {[%emt 0:00:16]} 74. Kg4 {[%emt 0:00:25]} Rg2+ {[%emt 0:00:09]} 75. Rg3 {[%emt 0:00:25]} Rf2 $1 {[%emt 0:00:58]} 76. Rf3 {[%emt 0:00:34]} Rg2+ {[%emt 0:00:05] The position is equal.} 77. Kf4 {[%emt 0:00:55] Threatening mate with Rg3+.} Ra2 {[%emt 0:00:04]} 78. Re3 {[%emt 0:00:30]} Kf7 {[%emt 0:00:46]} 79. h4 {[%emt 0:00:26]} Ra1 {[%emt 0:00:46]} 80. Rf3 {[%emt 0:01:04]} Rg1 {[%emt 0:00:39]} 81. Rg3 {[%emt 0:00:07]} Rf1+ {[%emt 0:01:03]} 82. Kg4 {[%emt 0:00:05]} Ra1 {[%emt 0:00:58]} 83. Rf3 {[%emt 0:00:32]} Rg1+ {[%emt 0:00:10]} 84. Kh5 {[%emt 0:00:22]} Rg8 {[%emt 0:00:50]} 85. Ra3 {[%emt 0:00:11]} Rh8+ {[%emt 0:00:10]} 86. Kg4 {[%emt 0:00:05]} Rg8+ {[%emt 0:00:01]} 87. Kf4 {[%emt 0:00:05] White threatens Ra7+ and mate.} Rg1 {[%emt 0:00:42]} 88. Ra7+ {[%emt 0:00:51]} Kg8 {[%emt 0:00:28]} 89. Ra3 {[%emt 0:01:41]} Kf7 {[%emt 0:00:22]} 90. Rb3 {[%emt 0:00:30]} Rg2 {[%emt 0:00:44]} 91. Rg3 {[%emt 0:00:41]} Ra2 {[%emt 0:01:33]} 92. Re3 {[%emt 0:01:03]} Rg2 {[%emt 0:00:26]} 93. Re4 {[%emt 0:00:37]} Rg1 {[%emt 0:00:18]} 94. Ra4 {[%emt 0:00:22]} Rg2 {[%emt 0:00:41]} 95. Ra7+ {[%emt 0:00:39]} Kg8 {[%emt 0:00:01]} 96. h5 {[%emt 0:00:06]} Rh2 {[%emt 0:01:48]} 97. Kg4 {[%emt 0:00:26]} Rg2+ {[%emt 0:00:05]} 98. Kf4 {[%emt 0:00:49]} Rh2 {[%emt 0:00:02]} 99. Ra6 {[%emt 0:00:22]} Kf7 {[%emt 0:00:29]} 100. h6 {[%emt 0:00:23]} Rh4+ {[%emt 0:00:24]} 101. Kf3 {[%emt 0:00:12]} Rxh6 {[%emt 0:00:08]} 102. Ke4 {Weighted Error Value: White=0.26 (precise) /Black=0.29 (precise)} 1/2-1/2

[Event "GER-ch Youth-U18 2022"]
[Site "Willingen"]
[Date "2022.06.11"]
[Round "9.10"]
[White "Weidemann, Jakob"]
[Black "Chen, Qingzhi Alexander"]
[Result "1-0"]
[ECO "B96"]
[WhiteElo "2047"]
[BlackElo "1879"]
[Annotator "TA"]
[PlyCount "77"]
[EventDate "2022.06.05"]
[EventType "swiss"]
[EventRounds "9"]
[EventCountry "GER"]
[SourceTitle "playchess.com"]
[Source "ChessBase"]
[SourceQuality "1"]
[TimeControl "40/4500+30:900+30"]

{[%evp 25,76,46,26,27,14,25,47,112,81,0,273,294,293,300,253,288,848,837,841,814,936,923,1182,1146,927,328,1240,785,768,648,29973,29974,29974,29975,29981,29982,29982,29983,29984,29984,29983,29984,29988,29989,29990,29991,29995,29996,29996,29997,29997,29998,29999]} 1. e4 {[%emt 0:00:00]} c5 {[%emt 0:00:00]} 2. Nf3 {[%emt 0:00:00]} d6 {[%emt 0:00:00]} 3. d4 {[%emt 0:00:00]} cxd4 {[%emt 0:00:00]} 4. Nxd4 {[%emt 0:00:00]} Nf6 {[%emt 0:00:00]} 5. Nc3 {[%emt 0:00:00]} a6 {[%emt 0:00:00]} 6. Bg5 {[%emt 0:00:00]} e6 {[%emt 0:00:00]} 7. f4 {[%emt 0:00:00]} b5 {[%emt 0:00:00]} 8. e5 {[%emt 0:00:00]} dxe5 {[%emt 0:00:00]} 9. fxe5 {[%emt 0:00:00]} Qc7 {[%emt 0:00:00]} 10. exf6 {[%emt 0:00:00]} Qe5+ {[%emt 0:00:00]} 11. Be2 {[%emt 0:00:00]} Qxg5 {[%emt 0:00:00]} 12. O-O {[%emt 0:00:00] 12.0-0 scores better than 12.Qd3.} Ra7 {[%emt 0:00:00]} 13. Qd3 {[%emt 0:00:00]} Rd7 {[%emt 0:00:00][%cal Od7d4]} 14. Ne4 {[%emt 0:00:00] B96: Sicilian Najdorf: 6 Bg5 e6 7 f4, lines other than 7...Qb6 and 7...Be7.} Qe5 {[%emt 0:00:00]} 15. Nf3 {[%emt 0:00:00]} Qxb2 {[%emt 0:00:00]} 16. Qe3 {[%emt 0:09:18] White is slightly better.} Bb7 {[%emt 0:00:00] [#]} (16... gxf6 $2 17. Rab1 Qa3 18. Nxf6+ Kd8 19. Qb6+ Ke7 20. Ne5 $18) (16... Qxc2 $2 17. Rfc1 Bc5 18. Nxc5 $18 (18. Rxc2 $2 {loses.} Bxe3+ 19. Kh1 O-O $19)) 17. c4 {[%emt 0:44:30] White is more active.} ({White should play} 17. Rab1 $1 $16 {[%cal Rb1b2]} Qxc2 18. Nfg5) 17... b4 $2 {[%emt 0:02:46][%mdl 8192] [#] White now steadily converts the win.} (17... gxf6 $2 18. Rab1 Qa3 19. Nxf6+ Kd8 20. Qxa3 Bxa3 21. Nxd7 Nxd7 22. cxb5 $18) (17... Bxe4 $11 18. Qxe4 b4) 18. Rab1 $1 $18 {[%emt 0:02:12] [#]} Qxa2 $146 {[%emt 0:01:14]} ({Predecessor:} 18... Qc2 19. Nfg5 Bxe4 20. Nxe4 g6 21. Rbd1 Bh6 22. Qc5 {1-0 (22) Ootes,L (2396)-Rosmuller,A (2142) Utrecht 2015}) 19. fxg7 {[%emt 0:00:33][%mdl 64] Deflection} Bxg7 {[%emt 0:00:31]} 20. Rxb4 {[%emt 0:00:55][%cal Oe3g5] And now Qg5! would win.} Nc6 $2 {[%emt 0:02:43] [#]} (20... O-O 21. Rfb1 (21. Nc5 Bxf3 22. Qxf3 Rc7 $15) 21... Ba8) 21. Rxb7 $1 {[%emt 0:01:36][%mdl 576] Deflection, Decoy} Rxb7 {[%emt 0:11:38]} 22. Nd6+ {[%emt 0:00:10][%cal Be4d6,Bd6b7,Bb7c5][%mdl 32]} Kd7 {[%emt 0:00:03]} 23. Nxb7 {[%emt 0:00:29] Pair of Knights!} Rb8 {[%emt 0:03:27]} 24. Nc5+ {[%emt 0:04:28]} Ke7 {[%emt 0:03:11]} 25. Rd1 $2 {[%emt 0:02:28]} (25. Qe4 Nd8 26. Nh4) 25... h6 $2 {[%emt 0:06:30]} (25... Rb1 26. Qd3 Rxd1+ 27. Bxd1 Qa1 28. Qd7+ Kf8) 26. Rd7+ {[%emt 0:01:55]} Ke8 {[%emt 0:01:36] [#]} 27. Rxf7 $3 {[%emt 0:04:44][%mdl 512]} Rb1+ {[%emt 0:12:12]} (27... Nd4 28. Rxg7) 28. Kf2 {[%emt 0:00:24] White mates.} Bd4 {[%emt 0:02:17] [#]} 29. Nxd4 $1 {[%emt 0:00:11]} Nxd4 {[%emt 0:00:04] [#]} (29... Rf1+ 30. Kxf1) 30. Qxd4 $1 {[%emt 0:02:16][%csl Gc5,Gf7][%cal Rd4d7]} Kxf7 {[%emt 0:00:34]} 31. Qd7+ {[%emt 0:00:11]} Kf6 {[%emt 0:00:41]} 32. Qxe6+ {[%emt 0:00:25]} Kg7 {[%emt 0:01:08]} 33. Qe7+ {[%emt 0:01:40]} Kg6 {[%emt 0:03:32]} 34. Kg3 {[%emt 0:01:40]} Rb3+ {[%emt 0:02:44]} 35. Kh4 {[%emt 0:02:15]} h5 {[%emt 0:03:29]} 36. Bxh5+ {[%emt 0:00:18]} Kh6 {[%emt 0:00:06]} 37. Qf6+ {[%emt 0:00:16]} Kh7 {[%emt 0:00:01]} 38. Bg6+ {[%emt 0:00:16]} Kh6 {[%emt 0:00:02]} 39. Bb1# {[%emt 0:00:11] Weighted Error Value: White=0.48/Black=0.80} 1-0